[Event "FIDE Chesscom Grand Swiss 2019"]
[Site "Douglas-Isle of Man"]
[Date "2019.10.18"]
[Round "8.43"]
[White "Shirov, Alexei"]
[Black "Yu, Yangyi"]
[Result "1/2-1/2"]
[ECO "B45"]
[WhiteElo "2664"]
[BlackElo "2763"]
[Annotator "RC"]
[PlyCount "88"]
[EventDate "2019.10.10"]
[EventType "swiss"]
[EventCountry "GBR"]
[SourceTitle "playchess.com"]
[Source "ChessBase"]
[SourceQuality "1"]
[TimeControl "40/6000+30:20/3000+30:900+30"]

1. e4 {[%emt 3:49:16]} c5 2. Nf3 {[%emt 0:00:01]} e6 3. d4 {[%emt 0:00:00]} cxd4 4. Nxd4 {[%emt 0:00:01]} Nc6 5. Nc3 {[%emt 0:00:01]} Nf6 {[%emt 0:00:02]} 6. Nxc6 bxc6 7. e5 {[%emt 0:00:01]} Nd5 {[%emt 0:00:01]} 8. Ne4 Qc7 9. f4 Qb6 {[%emt 0:00:01]} 10. c4 {[%emt 0:00:01]} Bb4+ {[%emt 0:00:01]} 11. Ke2 f5 12. exf6 {[%emt 0:00:01]} Nxf6 {[%emt 0:00:01]} 13. Be3 {[%emt 0:00:01]} Qd8 {[%emt 0:00:02]} 14. Nd6+ {[%emt 0:00:01]} Bxd6 {[%emt 0:00:02]} 15. Qxd6 {[%emt 0:00:02]} Bb7 {[%emt 0:00:01]} 16. g4 {[%emt 0:00:01]} c5 {[%emt 0:00:02]} 17. Rg1 Ne4 {[%emt 0:00:01]} 18. Qe5 {[%emt 0:00:01]} Qh4 {[%emt 0:00:01]} 19. Bg2 {[%emt 0:00:00]} Qxg4+ {[%emt 1:02:13]} 20. Bf3 {[%emt 0:00:00]} Nc3+ {[%emt 0:04:09]} 21. Kd3 {[%emt 0:00:00]} Qxf3 {[%emt 0:01:05]} 22. Kxc3 {[%emt 0:00:00]} Rg8 {[%emt 0:08:32]} 23. Rg3 {[%emt 0:00:00]} Qc6 {[%emt 0:19:37]} 24. Bxc5 {[%emt 0:00:00]} O-O-O {[%emt 0:00:14]} 25. Bd6 {[%emt 0:00:00]} Ba6 {[%emt 0:00:22]} 26. b3 {[%emt 0:00:00]} Kb7 {[%emt 0:00:01]} 27. Rd1 {[%emt 0:00:00]} Rc8 {[%emt 0:01:55]} 28. Rxg7 {[%emt 0:00:00]} Rxg7 {[%emt 0:02:54]} 29. Qxg7 {[%emt 0:00:00]} Bxc4 {[%emt 0:00:40]} 30. Kb2 {[%emt 0:00:00]} Be2 {[%emt 0:01:54]} 31. Re1 {[%emt 0:00:00]} Qxd6 {[%emt 0:00:16]} 32. Rxe2 {[%emt 0:00:00]} Qd1 {[%emt 0:00:30]} 33. Qg2+ {[%emt 0:00:00]} Rc6 {[%emt 0:03:41]} 34. a4 {[%emt 0:00:00]} Qd4+ {[%emt 0:00:43]} 35. Ka2 {[%emt 0:00:00]} Qxf4 {[%emt 0:00:25]} 36. Qg7 {[%emt 0:00:00]} Rd6 {[%emt 0:01:47]} 37. Qxh7 {[%emt 0:00:00]} Rd1 {[%emt 0:01:36]} 38. Qh5 {[%emt 0:00:00]} Qd4 {[%emt 0:03:50]} 39. Rb2 {[%emt 0:00:00]} e5 {[%emt 0:01:04]} 40. h4 {[%emt 0:00:00]} Rd2 {[%emt 0:01:43]} 41. Rxd2 {[%emt 0:00:00]} Qxd2+ {[%emt 0:50:03]} 42. Ka3 {[%emt 0:00:00]} Qc1+ {[%emt 0:00:00]} 43. Ka2 {[%emt 0:00:00]} Qc2+ {[%emt 0:00:00]} 44. Ka3 {[%emt 0:00:00]} Qc1+ {[%emt 0:00:00]} 1/2-1/2